[Event "Hungarian Championship Men 2022"]
[Site "Budapest"]
[Date "2022.12.07"]
[Round "3.1"]
[White "Fodor, Tamas Jr."]
[Black "Kozak, Adam"]
[Result "1/2-1/2"]
[ECO "D35"]
[WhiteElo "2517"]
[BlackElo "2538"]
[Annotator "TA"]
[PlyCount "66"]
[EventDate "2022.12.03"]
[EventType "tourn"]
[EventCountry "HUN"]
[SourceTitle "playchess.com"]
[Source "ChessBase"]
[SourceQuality "1"]
[TimeControl "40/5400+30:1800+30"]

{[%evp 22,66,6,8,5,0,20,4,19,10,0,0,17,0,0,0,0,0,0,0,0,0,0,0,0,0,0,0,0,0,0,0,0,-7,0,0,0,-9,0,0,0,0,0,0,0,0,-8]} 1. d4 {[%emt 0:00:39]} Nf6 {[%emt 0:02:14]} 2. c4 {[%emt 0:00:05]} e6 {[%emt 0:00:07]} 3. Nc3 {[%emt 0:00:17]} d5 {[%emt 0:01:02]} 4. cxd5 {[%emt 0:00:14]} exd5 {[%emt 0:00:05]} 5. Bg5 {[%emt 0:00:10]} c6 {[%emt 0:00:07]} 6. e3 {[%emt 0:00:45]} Be7 {[%emt 0:01:03]} 7. Qc2 {[%emt 0:01:21]} Nbd7 {[%emt 0:00:39]} 8. Bd3 {[%emt 0:00:13]} Nh5 {[%emt 0:01:18]} 9. Bxe7 {[%emt 0:00:23]} Qxe7 {[%emt 0:00:02]} 10. O-O-O {[%emt 0:00:17]} Nb6 {[%emt 0:00:25]} 11. h3 {[%emt 0:00:12]} g6 {[%emt 0:00:07]} 12. Nf3 {[%emt 0:00:34] The position is equal.} Be6 {[%emt 0:00:17] D36: Queen's Gambit Declined: Exchange Variation: Main line (5 Bg5 c6 6 Qc2).} 13. Kb1 {[%emt 0:00:29]} O-O-O {[%emt 0:00:37]} 14. Na4 {[%emt 0:00:08]} Kb8 {[%emt 0:00:23] [#]} 15. Nxb6 $146 {[%emt 0:01:49]} ({Predecessor:} 15. Rc1 Ng7 16. Nc5 Bf5 17. Bxf5 Nxf5 18. a4 Nc4 19. Rhe1 Ka8 20. Ka2 Rhe8 21. b3 {½-½ (36) Mis,M (2412)-Kozak,A (2522) Reinstorf 2022}) 15... axb6 {[%emt 0:00:36]} 16. Qb3 {[%emt 0:00:43]} Qc7 {[%emt 0:07:48]} 17. a4 {[%emt 0:00:37]} Nf6 {[%emt 0:06:01]} 18. Ng5 {[%emt 0:02:07]} Rhe8 {[%emt 0:05:47][%cal Bh8e8,Be8e6,Be6d6,Bd6d5,Bd5a5][%mdl 32]} 19. Rc1 {[%emt 0:02:18]} Ne4 {[%emt 0:22:56]} 20. Bxe4 {[%emt 0:05:52]} dxe4 {[%emt 0:00:10]} 21. Nxe6 {[%emt 0:02:24]} Rxe6 {[%emt 0:00:17]} 22. Rc2 {[%emt 0:00:26]} Red6 {[%emt 0:03:21]} 23. Rhc1 {[%emt 0:00:49]} Rd5 {[%emt 0:03:19]} 24. Rc4 {[%emt 0:02:09]} f5 {[%emt 0:02:34]} 25. g3 {[%emt 0:00:18]} R8d7 {[%emt 0:06:57]} 26. h4 {[%emt 0:07:34]} Qd8 {[%emt 0:06:13]} 27. R1c3 {[%emt 0:02:44]} Ra5 {[%emt 0:08:00]} 28. Rc1 {[%emt 0:12:20]} Rdd5 {[%emt 0:01:50]} 29. Qc2 {[%emt 0:05:11]} b5 {[%emt 0:06:43]} 30. Rb4 {[%emt 0:01:53]} Qb6 {[%emt 0:02:56]} 31. Qb3 {[%emt 0:04:33]} Qa6 {[%emt 0:02:52][%cal Ra5a4]} 32. axb5 {[%emt 0:00:09]} Rdxb5 {[%emt 0:00:22]} 33. Rxb5 {[%emt 0:00:21]} Rxb5 {[%emt 0:00:18] An interesting draw.   Weighted Error Value: White=0.02 (flawless) /Black=0.03 (flawless)} 1/2-1/2

[Event "Hungarian Championship Men 2022"]
[Site "Budapest"]
[Date "2022.12.07"]
[Round "3.2"]
[White "Papp, Gabor"]
[Black "Berkes, Ferenc"]
[Result "1/2-1/2"]
[ECO "C02"]
[WhiteElo "2564"]
[BlackElo "2643"]
[Annotator "TA"]
[PlyCount "61"]
[EventDate "2022.12.03"]
[EventType "tourn"]
[EventCountry "HUN"]
[SourceTitle "playchess.com"]
[Source "ChessBase"]
[SourceQuality "1"]
[TimeControl "40/5400+30:1800+30"]

{[%evp 14,61,47,35,83,90,88,1,70,45,49,32,47,41,43,10,11,0,0,0,0,-21,-21,-37,2,5,16,20,16,6,5,1,6,5,6,8,18,12,14,0,0,0,0,0,0,0,0,0,0,0]} 1. e4 {[%emt 0:00:34]} e6 {[%emt 0:00:40]} 2. d4 {[%emt 0:00:13]} d5 {[%emt 0:00:05]} 3. e5 {[%emt 0:00:05]} c5 {[%emt 0:00:07]} 4. c3 {[%emt 0:00:10]} Nc6 {[%emt 0:00:07]} 5. Nf3 {[%emt 0:00:22]} Qb6 {[%emt 0:00:22]} 6. Bd3 {[%emt 0:00:51]} Bd7 {[%emt 0:03:01]} 7. dxc5 {[%emt 0:06:20]} Bxc5 {[%emt 0:00:22]} 8. O-O {[%emt 0:00:28]} Nh6 {[%emt 0:31:05] C02: French: Advance Variation.} (8... a5 $14) 9. b4 $16 {[%emt 0:13:31]} Be7 {[%emt 0:00:07]} 10. Na3 {[%emt 0:13:16]} ({White should play} 10. Bxh6 $16 gxh6 11. Qd2) 10... Nf5 {[%emt 0:26:34] [#]} (10... Ng4 $11) 11. Bxf5 $146 {[%emt 0:30:48]} ({Predecessor:} 11. Rb1 Nh4 12. Nxh4 Bxh4 13. Be3 Qd8 14. f4 g6 15. Nb5 Be7 16. Qd2 O-O 17. g4 {½-½ (61) Frank Nielsen,M (2016)-Tandrup,M (2018) Copenhagen 2013}) 11... exf5 {[%emt 0:00:39]} 12. Qxd5 {[%emt 0:00:02] Black must now prevent Nc4.} Be6 {[%emt 0:00:09]} 13. Qd3 {[%emt 0:00:21] aiming for Nc4.} O-O {[%emt 0:00:30]} 14. Be3 {[%emt 0:00:51]} Qd8 {[%emt 0:01:52]} 15. Qe2 {[%emt 0:02:14]} (15. Qxd8 {simplifies} Rfxd8 16. Nc2 Rd5 17. Ncd4) 15... a5 $1 {[%emt 0:10:53]} 16. Rfd1 {[%emt 0:00:17]} Qb8 {[%emt 0:00:12]} 17. Nc4 {[%emt 0:00:56] Hoping for Nb6.} axb4 {[%emt 0:04:22]} 18. cxb4 {[%emt 0:00:53]} Bxc4 {[%emt 0:02:34]} 19. Qxc4 {[%emt 0:00:06] The position is equal.} Nxe5 {[%emt 0:00:05]} 20. Nxe5 {[%emt 0:02:16]} Qxe5 {[%emt 0:00:03]} 21. Rac1 {[%emt 0:05:13]} b5 {[%emt 0:03:37]} 22. Qd5 {[%emt 0:02:02]} Qxd5 {[%emt 0:00:53]} 23. Rxd5 {[%emt 0:00:13]} Rxa2 {[%emt 0:01:26]} 24. Rxb5 {[%emt 0:01:17]} Rb2 {[%emt 0:00:10]} 25. Rb7 {[%emt 0:08:18]} f4 {[%emt 0:01:18]} 26. Rxe7 {[%emt 0:04:50]} fxe3 {[%emt 0:00:04]} 27. Rxe3 {[%emt 0:00:03]} Rxb4 {[%emt 0:00:07]} 28. g3 {[%emt 0:00:02]} Rb7 {[%emt 0:00:15]} 29. Kg2 {[%emt 0:00:03]} g6 {[%emt 0:00:06]} 30. h4 {[%emt 0:00:02]} h5 {[%emt 0:00:04]} 31. Rec3 {[%emt 0:00:01] Weighted Error Value: White=0.15 (very precise) /Black=0.09 (flawless)} 1/2-1/2

[Event "Hungarian Championship Men 2022"]
[Site "Budapest"]
[Date "2022.12.07"]
[Round "3.3"]
[White "Korpa, Bence"]
[Black "Nagy, Gabor"]
[Result "1/2-1/2"]
[ECO "A30"]
[WhiteElo "2500"]
[BlackElo "2482"]
[Annotator "TA"]
[PlyCount "62"]
[EventDate "2022.12.03"]
[EventType "tourn"]
[EventCountry "HUN"]
[SourceTitle "playchess.com"]
[Source "ChessBase"]
[SourceQuality "1"]
[TimeControl "40/5400+30:1800+30"]

{[%evp 27,62,0,0,0,0,0,0,0,0,0,0,0,0,0,0,0,0,0,0,0,0,0,0,0,0,0,0,0,0,0,0,0,0,0,0,0,89]} 1. c4 {[%emt 0:00:33]} c5 {[%emt 0:00:38]} 2. Nf3 {[%emt 0:00:07]} Nf6 {[%emt 0:00:06]} 3. b3 {[%emt 0:00:10]} g6 {[%emt 0:00:07]} 4. Bb2 {[%emt 0:00:06]} Bg7 {[%emt 0:00:06]} 5. g3 {[%emt 0:00:07]} b6 {[%emt 0:00:05]} 6. Bg2 {[%emt 0:00:06]} Bb7 {[%emt 0:00:06]} 7. O-O {[%emt 0:00:07]} O-O {[%emt 0:00:07]} 8. Nc3 {[%emt 0:00:08]} Na6 {[%emt 0:00:09]} 9. d4 {[%emt 0:00:09]} d5 {[%emt 0:00:08]} 10. dxc5 {[%emt 0:00:08]} Nxc5 {[%emt 0:00:06]} 11. Nxd5 {[%emt 0:00:14]} Nxd5 {[%emt 0:00:07]} 12. Bxg7 {[%emt 0:00:09]} Kxg7 {[%emt 0:00:06]} 13. cxd5 {[%emt 0:00:08]} Qxd5 {[%emt 0:00:06]} 14. Qxd5 {[%emt 0:00:09]} Bxd5 {[%emt 0:00:06] The position is equal.} 15. Rfd1 {[%emt 0:00:08] A30: Symmetrical English: Double Fianchetto and Hedgehog.} Rfd8 {[%emt 0:00:08]} 16. Ne5 {[%emt 0:00:09]} Bxg2 {[%emt 0:00:09]} 17. Kxg2 {[%emt 0:00:06]} Rac8 {[%emt 0:00:14]} (17... Kf6 18. f4 Ke6 19. Kf3 f6 20. Nc6 Rd6 21. Nd4+ Kf7 22. Nb5 Rxd1 23. Rxd1 a6 24. Nc7 Rc8 25. Nd5 Rd8 26. e4 e6 27. Ne3 Rxd1 28. Nxd1 Ke7 29. Ke3 Kd6 30. Nb2 b5 31. b4 Nd7 {½-½ (31) Korpa,B (2546)-Nagy,G (2489) Hungary 2020}) 18. Rac1 {[%emt 0:00:15]} Kf6 {[%emt 0:00:08]} 19. Nd7+ {[%emt 0:00:21]} Nxd7 {[%emt 0:00:07]} 20. Rxc8 {[%emt 0:00:07]} Rxc8 {[%emt 0:00:05]} 21. Rxd7 $11 {[%emt 0:00:07][%mdl 4096] Endgame KR-KR} a5 {[%emt 0:00:07]} 22. Rb7 {[%emt 0:00:09] [#]} Rc2 $146 {[%emt 0:00:08][%csl LRa2,LRe2]} ({Predecessor:} 22... Rc6 23. Kf3 e6 24. h4 Rc2 25. Rxb6 Rxa2 26. Rb5 h5 27. e3 Ke7 28. Rb7+ Kf6 29. Rb5 Ra3 30. Ke4 a4 {½-½ (31) Nikolaou,G (2275)-Aggelis,N (2329) Peristeri 2010}) 23. Rxb6+ {[%emt 0:00:12]} e6 {[%emt 0:00:05]} 24. Kf3 {[%emt 0:00:11]} Rxa2 {[%emt 0:00:06]} 25. e3 {[%emt 0:00:13]} Ra3 {[%emt 0:00:07]} 26. Ra6 {[%emt 0:00:12]} Rxb3 {[%emt 0:00:06] Hoping for ...Ra3.} 27. Rxa5 {[%emt 0:00:05]} h5 {[%emt 0:00:06]} 28. h4 {[%emt 0:00:05]} Rc3 {[%emt 0:00:04]} 29. Ke4 {[%emt 0:00:09]} Rc4+ {[%emt 0:00:07]} 30. Kf3 {[%emt 0:00:05]} (30. Kd3 $5 {[%cal Rd3c4]} Rc7 31. Ke4 $11) 30... Rb4 {[%emt 0:00:04]} 31. Ra7 {[%emt 0:00:06]} Ke5 {Weighted Error Value: White=0.00 (flawless) /Black=0.00 (flawless)} (31... Rb2 $11) 1/2-1/2

[Event "Hungarian Championship Men 2022"]
[Site "Budapest"]
[Date "2022.12.07"]
[Round "3.4"]
[White "Grigoriants, Sergey"]
[Black "Horvath, Adam"]
[Result "1-0"]
[ECO "E47"]
[WhiteElo "2550"]
[BlackElo "2501"]
[Annotator "TA"]
[PlyCount "51"]
[EventDate "2022.12.03"]
[EventType "tourn"]
[EventCountry "HUN"]
[SourceTitle "playchess.com"]
[Source "ChessBase"]
[SourceQuality "1"]
[TimeControl "40/5400+30:1800+30"]

{[%evp 19,51,0,12,-13,-13,-21,-21,-22,-22,-26,-30,-26,-33,-15,-39,-42,-36,-31,-14,-15,0,0,53,-35,-54,-70,-59,-176,1175,1163,1092,1087,29981,2193]} 1. d4 {[%emt 0:00:44]} Nf6 {[%emt 0:00:38]} 2. c4 {[%emt 0:00:45]} e6 {[%emt 0:00:05]} 3. Nc3 {[%emt 0:00:35]} Bb4 {[%emt 0:00:26]} 4. e3 {[%emt 0:00:30]} O-O {[%emt 0:00:31]} 5. Bd3 {[%emt 0:00:49]} c5 {[%emt 0:01:01]} 6. Nge2 {[%emt 0:01:13]} d5 {[%emt 0:01:27]} 7. cxd5 cxd4 {[%emt 0:00:54]} 8. exd4 {[%emt 0:01:49]} Nxd5 {[%emt 0:00:27]} 9. a3 {[%emt 0:01:10]} Be7 {[%emt 0:05:38]} 10. Bc2 {[%emt 0:00:38]} Nc6 {[%emt 0:10:18]} 11. Qd3 {[%emt 0:01:47][%csl Gc2][%cal Rd3h7] E48: Nimzo-Indian: Rubinstein: 5 Bd3 d5 including 6 Ne2, but excluding 6 a3.} g6 {[%emt 0:00:04]} 12. h4 {[%emt 0:02:25][%cal Bh2h4,Bh4h5,Bh5h6][%mdl 32]} Nxc3 $1 {[%emt 0:10:29]} (12... Bxh4 $2 13. Qh3 $18) 13. bxc3 {[%emt 0:02:02] Hoping for h5. The position is equal.} e5 $1 {[%emt 0:00:03]} 14. Qg3 {[%emt 0:00:33]} exd4 {[%emt 0:07:26]} 15. h5 $1 {[%emt 0:00:59][%cal Rh5g6]} Bd6 {[%emt 0:00:36]} 16. Bf4 {[%emt 0:01:44]} Bxf4 {[%emt 0:01:26]} 17. Nxf4 {[%emt 0:00:07][%cal Rh5g6] hxg6 is the strong threat.} Re8+ {[%emt 0:07:13]} 18. Kf1 {[%emt 0:00:45][%cal Rh5g6] Strongly threatening hxg6.} g5 {[%emt 0:00:08]} 19. h6 $1 {[%emt 0:02:20] [#]} Ne5 $146 {[%emt 0:08:00] aiming for ...Bg4.} ({Predecessor:} 19... Re5 20. Rd1 Bf5 21. Bb3 Kf8 22. Rh5 f6 23. cxd4 Re4 24. Rh4 Qe7 25. Nd5 gxh4 {½-½ (32) Amico,R (2330)-Cantelli,A (2291) ICCF email 2009}) 20. Re1 {[%emt 0:21:20][%cal Ba1e1,Be1e5,Be5g5][%mdl 32]} Bd7 {[%emt 0:17:22]} ({Black should play} 20... d3 $11 21. Nxd3 Bf5 22. Rxe5 Bxd3+ 23. Bxd3 Rxe5 24. Qxe5 (24. Bxh7+ $2 Kxh7 25. Qxe5 Qd1+ 26. Qe1 Rd8 $19) 24... Qxd3+ 25. Kg1 Qb1+ 26. Kh2 Qg6) 21. c4 {[%emt 0:26:33]} ({White should try} 21. Rh5 $1 $14 Bb5+ 22. Bd3 Bxd3+ 23. Nxd3) 21... f6 $15 {[%emt 0:15:54] And now ...Rc8 would win.} 22. Nd5 {[%emt 0:11:11] Black must now prevent f4.} Bc6 $1 {[%emt 0:01:45]} (22... Nxc4 23. Rxe8+ Bxe8 24. Qd3 $1 $11) (22... Rc8 23. Rh5 Rc6 24. f4 $11 (24. Nxf6+ $2 Qxf6 25. Qxg5+ Ng6 $19)) 23. Rh5 {[%emt 0:03:47]} (23. f4 $15 Bxd5 24. cxd5) 23... d3 $4 {[%emt 0:04:06][%mdl 8192] [#]} (23... Nxc4 24. Rxe8+ Bxe8 25. Nxf6+ $1 (25. Qd3 Nd2+ 26. Kg1 Bg6 $16) 25... Qxf6 26. Rxg5+ Bg6 27. Bxg6 $18) (23... Bxd5 $19 24. cxd5 Rc8) 24. Rxg5+ $3 $18 {[%emt 0:02:49][%mdl 576]} fxg5 {[%emt 0:01:02]} 25. Rxe5 {[%emt 0:00:08]} Bxd5 {[%emt 0:03:58]} 26. Rxg5+ {[%emt 0:01:04] Weighted Error Value: White=0.23 (precise) /Black=0.39} ({Stronger than} 26. Rxe8+ Qxe8 27. Qxg5+ (27. Bxd3 $2 {loses.} Qh5 $19) 27... Qg6 28. Qxd5+ Kf8 29. Qf3+ (29. Bxd3 Qxh6 30. Kg1 Qg7 $11) (29. Qxb7 Rd8 $11) (29. Qxd3 Qxh6 30. Qf5+ Kg8 $15) 29... Kg8 30. Qd5+ (30. Qxb7 Rd8 $17) (30. Bxd3 Qxh6 31. g3 Qg7 $11) 30... Kf8 31. Bxd3 Qxh6 $11) 1-0

[Event "Hungarian Championship Men 2022"]
[Site "Budapest"]
[Date "2022.12.07"]
[Round "3.5"]
[White "Prohaszka, Peter"]
[Black "Horvath, Csaba"]
[Result "1-0"]
[ECO "A08"]
[WhiteElo "2562"]
[BlackElo "2502"]
[Annotator "TA"]
[PlyCount "85"]
[EventDate "2022.12.03"]
[EventType "tourn"]
[EventCountry "HUN"]
[SourceTitle "playchess.com"]
[Source "ChessBase"]
[SourceQuality "1"]
[TimeControl "40/5400+30:1800+30"]

{[%evp 23,85,22,17,12,27,0,11,0,0,0,0,0,16,0,0,0,0,0,0,0,9,0,0,0,5,0,9,9,29,0,0,0,0,0,0,0,7,0,5,7,4,8,68,67,87,83,309,316,319,305,273,234,1343,1281,29973,29973,29972,29974,29974,29975,29975,0,29975,29974]} 1. Nf3 {[%emt 0:00:32]} d5 {[%emt 0:01:48]} 2. g3 {[%emt 0:01:56]} c5 {[%emt 0:03:30]} 3. Bg2 {[%emt 0:00:56]} Nc6 {[%emt 0:00:10]} 4. d4 {[%emt 0:00:54]} e6 {[%emt 0:00:42]} 5. O-O {[%emt 0:00:39]} Nf6 {[%emt 0:00:23]} 6. c4 {[%emt 0:00:46]} dxc4 {[%emt 0:00:34]} 7. dxc5 {[%emt 0:02:16]} Qxd1 {[%emt 0:00:20]} 8. Rxd1 {[%emt 0:00:04]} Bxc5 {[%emt 0:00:08]} 9. Nbd2 {[%emt 0:00:17]} c3 {[%emt 0:00:15]} 10. bxc3 {[%emt 0:00:10]} O-O {[%emt 0:00:39]} 11. Nb3 {[%emt 0:00:31]} Be7 {[%emt 0:00:13]} 12. c4 {[%emt 0:00:53]} Bd7 {[%emt 0:02:14]} 13. Bb2 {[%emt 0:00:07] E04: Open Catalan: 5 Nf3.} Rfc8 {[%emt 0:02:02] is currently scoring better than 13...Rfd8.} 14. Rac1 {[%emt 0:19:08] [#] aiming for Bxf6.} Be8 {[%emt 0:12:17]} 15. Nfd4 {[%emt 0:06:19] The position is equal.} a5 {[%emt 0:11:26][%cal Ba7a5,Ba5a4][%mdl 32]} 16. Nxc6 {[%emt 0:04:33]} Bxc6 {[%emt 0:00:24]} 17. Bxc6 {[%emt 0:01:33] [#]} bxc6 $146 {[%emt 0:07:16]} ({Predecessor:} 17... Rxc6 18. Nd4 Rcc8 19. Nb5 a4 20. Bxf6 Bxf6 21. Rd7 b6 22. Rb7 Rab8 23. Ra7 Ra8 24. Rb7 Rab8 25. Ra7 Ra8 26. Rb7 {½-½ (26) So,W (2776)-Anand,V (2751) Warsaw 2022}) 18. Rc2 {[%emt 0:23:49]} a4 {[%emt 0:03:29]} 19. Nc1 {[%emt 0:00:10]} Rcb8 {[%emt 0:08:49]} 20. Nd3 {[%emt 0:04:13]} Nd7 {[%emt 0:07:04]} 21. Kg2 {[%emt 0:01:20]} Rb7 {[%emt 0:03:20]} 22. Bc3 {[%emt 0:05:11]} f6 {[%emt 0:07:31]} 23. f4 {[%emt 0:04:07]} Kf7 {[%emt 0:00:41]} 24. Kf3 {[%emt 0:00:10]} Ke8 {[%emt 0:04:06]} 25. g4 {[%emt 0:01:05]} Rab8 {[%emt 0:00:29]} 26. Rb2 {[%emt 0:12:46]} Rxb2 {[%emt 0:08:37]} 27. Bxb2 {[%emt 0:00:24]} Nc5 {[%emt 0:03:00] [#] Threatens to win with ...Nxd3.} 28. Bc3 {[%emt 0:01:52]} Nxd3 {[%emt 0:00:39]} 29. exd3 $11 {[%emt 0:00:19][%mdl 4096] Endgame KRB-KRB} Kf7 {[%emt 0:05:10]} 30. d4 {[%emt 0:04:07]} Bd6 {[%emt 0:05:47]} 31. h4 {[%emt 0:02:44]} h5 {[%emt 0:00:34]} 32. gxh5 {[%emt 0:00:18]} f5 {[%emt 0:00:56]} (32... Be7 $11) 33. d5 {[%emt 0:01:12]} exd5 {[%emt 0:00:46]} 34. cxd5 {[%emt 0:00:06]} Rc8 {[%emt 0:00:13]} (34... cxd5 $16 {was worth a try.} 35. Rxd5 Rc8) 35. Rg1 $18 {[%emt 0:01:35]} Bf8 {[%emt 0:00:07]} 36. d6 {[%emt 0:00:29]} Rd8 {[%emt 0:01:16]} 37. Be5 {[%emt 0:00:23]} Bxd6 $2 {[%emt 0:00:12]} (37... Ke6 38. Bxg7 Bxg7) 38. Rxg7+ {[%emt 0:00:12]} ({Less strong is} 38. Bxg7 Bc5 39. Rg6 Rd3+ 40. Ke2 Re3+ 41. Kd1 Rh3 $14) 38... Kf8 {[%emt 0:00:04]} 39. h6 {[%emt 0:00:35][%cal Bh5h6,Bh6h7][%mdl 32]} Bxe5 {[%emt 0:00:18]} 40. fxe5 {[%emt 0:00:00][%cal Bf4e5,Be5e6,Be6e7][%mdl 32]} Rd4 {[%emt 0:00:00]} 41. e6 {[%emt 0:00:52]} Rxh4 {[%emt 0:01:53]} 42. e7+ {[%emt 0:00:50]} Ke8 {[%emt 0:00:02]} 43. h7 {[%emt 0:00:09] Weighted Error Value: White=0.04 (flawless) /Black=0.36} 1-0

[Event "Hungarian Championship Men 2022"]
[Site "Budapest"]
[Date "2022.12.08"]
[Round "4.1"]
[White "Kozak, Adam"]
[Black "Horvath, Csaba"]
[Result "1-0"]
[ECO "D27"]
[WhiteElo "2538"]
[BlackElo "2502"]
[Annotator "TA"]
[PlyCount "113"]
[EventDate "2022.12.03"]
[EventType "tourn"]
[EventCountry "HUN"]
[SourceTitle "playchess.com"]
[Source "ChessBase"]
[SourceQuality "1"]
[TimeControl "40/5400+30:1800+30"]

{[%evp 13,113,7,12,0,8,0,0,0,11,0,0,0,0,-15,-20,-15,0,-10,-10,-18,-22,-22,0,0,41,39,40,62,39,39,34,46,54,0,92,117,114,50,47,41,192,197,202,-80,-86,-145,18,15,37,27,67,67,140,147,147,143,243,253,329,315,302,284,316,313,312,312,312,304,333,314,232,172,270,255,333,326,326,326,367,290,679,676,616,658,638,606,1262,1212,2360,2102,1649,1086,29979,29980,29985,29986,29986,29987,29987,29987,29992,29993]} 1. d4 {[%emt 0:04:37]} d5 {[%emt 0:01:23]} 2. c4 {[%emt 0:00:21]} dxc4 {[%emt 0:00:16]} 3. Nf3 {[%emt 0:00:49]} a6 {[%emt 0:04:51]} 4. e3 {[%emt 0:02:58]} Nf6 {[%emt 0:00:26]} 5. Bxc4 {[%emt 0:01:45]} e6 {[%emt 0:00:06]} 6. O-O {[%emt 0:01:20]} c5 {[%emt 0:00:14]} 7. a4 {[%emt 0:04:56]} Nc6 {[%emt 0:00:41]} 8. h3 {[%emt 0:14:32] [#] D27: Queen's Gambit Accepted: Classical main line: 7 e4!? and 7 a4.} b6 $146 {[%emt 0:11:14]} ({Predecessor:} 8... cxd4 9. exd4 Be7 10. Nc3 O-O 11. Be3 Nb4 12. Ne5 b6 13. Qf3 Rb8 14. Qg3 Nh5 15. Qf3 Nf6 16. Rfd1 Bb7 17. Qe2 Rc8 18. Rac1 {1-0 (43) Jeremic,V (2503)-Bakic,R (2383) Subotica 2008}) 9. Qe2 {[%emt 0:08:14]} cxd4 {[%emt 0:07:20]} 10. Rd1 {[%emt 0:03:02][%cal Re3d4] The position is equal.} Be7 {[%emt 0:05:19]} 11. exd4 {[%emt 0:01:11]} Bb7 {[%emt 0:05:05]} 12. Nc3 {[%emt 0:04:11] Threatens to win with d5.} Nb4 {[%emt 0:02:01] Against d5} 13. Bf4 {[%emt 0:02:18]} O-O {[%emt 0:01:37]} 14. Ne5 {[%emt 0:00:58]} Nfd5 {[%emt 0:06:49]} 15. Bg3 {[%emt 0:02:33]} Rc8 {[%emt 0:04:16]} 16. Ne4 {[%emt 0:03:38]} f6 {[%emt 0:04:09]} 17. Nf3 {[%emt 0:01:46]} Qd7 {[%emt 0:02:23]} 18. a5 {[%emt 0:12:06]} Qc6 {[%emt 0:06:41]} 19. Bb3 {[%emt 0:01:32][%cal Oe4c5]} Kh8 {[%emt 0:02:14]} 20. Rac1 {[%emt 0:05:23]} Qxc1 {[%emt 0:01:15]} 21. Rxc1 {[%emt 0:00:44]} Rxc1+ {[%emt 0:00:02]} 22. Kh2 {[%emt 0:00:08] Nd6 is the strong threat.} Rc6 {[%emt 0:16:06] Against Nd6} 23. Nc3 {[%emt 0:11:38]} (23. axb6 $14 Bc8 24. Nc5 Rxb6 25. Nd2) 23... Rf7 {[%emt 0:06:00]} (23... bxa5 $2 24. Nxd5 Bd6 25. Nxb4 (25. Qxe6 $2 Bxg3+ 26. Kxg3 Rxe6 $19) 25... Bxb4 26. Bxe6 $18) (23... Nxc3 $2 24. bxc3 Rxc3 25. Qxe6 $18) (23... Rd8 $11 {keeps the balance.}) 24. axb6 $16 {[%emt 0:03:54]} Rxb6 {[%emt 0:00:17]} 25. Na4 {[%emt 0:00:50]} (25. Nd2 $1 $16 {[%cal Rd2c4] aiming for Nc4.} a5 26. Na4) 25... Rc6 $14 {[%emt 0:00:13]} 26. Nc5 {[%emt 0:01:38]} Bxc5 {[%emt 0:02:04]} (26... Bd6 $1 $14) 27. dxc5 $18 {[%emt 0:00:04]} e5 {[%emt 0:01:35] Inhibits Nd4.} 28. Bxe5 $2 {[%emt 0:06:50]} fxe5 $17 {[%emt 0:02:31]} 29. Qxe5 {[%emt 0:00:33] [#]} (29. Nxe5 $142 Re7 30. Bxd5 Nxd5 31. Qf3) 29... Rc8 $2 {[%emt 0:03:32]} (29... Rxc5 $2 {leads to mate.} 30. Qe8+) (29... Re7 $1 $17 {[%cal Re7e5]} 30. Qb8+ Bc8 31. Bxd5 Nxd5) 30. Ng5 $40 {[%emt 0:00:01][%mdl 1152] White has compensation. White mounts an attack.} Re7 {[%emt 0:00:59]} (30... Rxf2 $2 31. Qe4 g6 32. Qh4 $18) 31. Qf5 {[%emt 0:00:37][%csl Gg5][%cal Rf5h7] Chess con chili.} g6 {[%emt 0:00:13]} (31... Rxc5 $2 32. Qxh7#) 32. Qg4 {[%emt 0:00:09] Strongly threatening Qd4+.} a5 {[%emt 0:02:08] Black is now going downhill.} (32... Rxc5 $2 33. Qd4+ Kg8 34. Qxc5 $18) ({Black should try} 32... Rf8 $14) 33. Qd4+ $16 {[%emt 0:00:03]} Kg8 {[%emt 0:00:06]} 34. Ne4 {[%emt 0:00:11]} Rd8 {[%emt 0:02:43] [#]} (34... Rxe4 $16 35. Qxe4 Rf8) 35. Nf6+ $1 $18 {[%emt 0:00:43]} Kf8 {[%emt 0:00:19]} 36. Nxd5 {[%emt 0:00:50]} Bxd5 {[%emt 0:00:19]} 37. Qh8+ {[%emt 0:00:13]} Kf7 {[%emt 0:00:02]} 38. Qxd8 {[%emt 0:00:14]} Bxb3 {[%emt 0:00:05]} 39. Qxa5 {[%emt 0:00:24]} Rb7 {[%emt 0:01:13]} 40. Qd8 {[%emt 0:00:00]} Bd5 {[%emt 0:00:00]} 41. Qd6 {[%emt 0:03:09]} Bc6 {[%emt 0:03:03]} 42. f3 {[%emt 0:02:48]} h5 {[%emt 0:02:48]} (42... Bd7 {is a better defense.} 43. h4 h5) 43. Kg3 {[%emt 0:02:41]} Kg7 {[%emt 0:00:54]} 44. Kh4 {[%emt 0:03:11]} Kh7 {[%emt 0:02:15]} 45. Kg5 {[%emt 0:04:01]} Be8 {[%emt 0:02:05]} 46. g4 {[%emt 0:05:15] And now Qe6 would win.} hxg4 $2 {[%emt 0:08:11]} (46... Nc6 47. f4 Kg8 48. Qe6+ Kf8 49. Qf6+ Kg8 50. gxh5 gxh5 51. Qe6+ Kf8 52. Qh6+ Kg8 53. Qe6+ Kf8 54. Qh6+ Kg8) 47. hxg4 {[%emt 0:00:04]} Nc6 {[%emt 0:00:22]} 48. Qf8 {[%emt 0:03:51]} Re7 {[%emt 0:04:03]} 49. b4 {[%emt 0:01:47][%cal Bb2b4,Bb4b5,Bb5b6][%mdl 32] Intending b5 and mate.} Re6 {[%emt 0:01:02]} 50. b5 {[%emt 0:02:48]} Nd4 {[%emt 0:01:32]} 51. b6 {[%emt 0:02:06]} Re5+ {[%emt 0:02:12]} 52. Kh4 {[%emt 0:00:59]} Bc6 {[%emt 0:01:09]} 53. Qf7+ {[%emt 0:01:19] White mates.} Kh6 {[%emt 0:00:04]} 54. g5+ {[%emt 0:00:32]} Rxg5 {[%emt 0:00:11]} 55. Qf8+ {[%emt 0:00:05]} Kh7 {[%emt 0:00:11]} 56. Qe7+ {[%emt 0:00:21]} (56. Kxg5 $2 {loses.} Ne6+ 57. Kf6 Nxf8 $19) 56... Kg8 {[%emt 0:00:23]} 57. Kxg5 {[%emt 0:00:34] Weighted Error Value: White=0.17 (very precise) /Black=0.57} (57. Qxg5 Nxf3+ 58. Kg3 Nxg5 $19) 1-0